fUSD/lending_fUSD_20250120
["ID","MTS","AMOUNT","RATE_DAILY","PERIOD"]
[349650442,1737357054557,-500.0,0.00020973,2]
[349650443,1737357054567,-500.0,0.00020973,2]
[349650444,1737357054576,-500.0,0.00020973,2]
[349650445,1737357054585,-500.0,0.00020973,2]
[349650446,1737357054595,-671.68,0.00020973,2]
[349650447,1737357054604,-500.0,0.00020973,2]
[349650448,1737357054615,-500.0,0.00020973,2]
[349650449,1737357054627,-600.41,0.00020973,2]
[349650450,1737357054638,-297.18807844,0.00020973,2]
[349650451,1737357054653,-659.15192156,0.00020973,2]
[349650452,1737357054662,-751.01,0.00020973,2]
[349650453,1737357054671,-500.0,0.00020973,2]
[349650454,1737357054683,-560.7,0.00020973,2]
[349650455,1737357054693,-500.0,0.00020973,2]
[349650456,1737357054702,-804.91,0.00020973,2]
[349650457,1737357054714,-500.0,0.00020973,2]
[349650458,1737357054723,-500.0,0.00020973,2]
[349650459,1737357054732,-500.0,0.00020973,2]
[349650460,1737357054742,-855.88,0.00020973,2]
[349650461,1737357054751,-500.0,0.00020973,2]
[349650462,1737357054760,-1440.4,0.00020973,2]
[349650463,1737357054770,-500.0,0.00020973,2]
[349650464,1737357054779,-507.73,0.00020973,2]
[349650465,1737357054788,-598.16,0.00020973,2]
[349650466,1737357054799,-572.44,0.00020973,2]
[349650467,1737357054808,-500.0,0.00020973,2]
[349650468,1737357054817,-891.28,0.00020974,2]
[349650469,1737357054827,-500.0,0.00020974,2]
[349650470,1737357054836,-987.27,0.00020974,2]
[349650471,1737357054845,-687.51,0.00020974,2]
[349650472,1737357054854,-1487.68,0.00020974,2]
[349650473,1737357054865,-945.97,0.00020974,2]
[349650474,1737357054879,-737.44,0.00020974,2]
[349650475,1737357054888,-500.0,0.00020974,2]
[349650476,1737357054897,-500.0,0.00020974,2]
[349650477,1737357054907,-500.0,0.00020974,2]
[349650478,1737357054916,-914.42,0.00020974,2]
[349650479,1737357054925,-500.0,0.00020974,2]
[349650480,1737357054934,-500.0,0.00020974,2]
[349650481,1737357054944,-500.0,0.00020974,2]
[349650482,1737357054953,-500.0,0.00020974,2]
[349650483,1737357054962,-500.0,0.00020974,2]
[349650484,1737357054971,-162.06759521,0.00021019,2]
[349650485,1737357054980,-510.42089219,0.00021023,2]
[349650486,1737357054990,-317.81212938,0.00021127,2]
[349650487,1737357055000,-293.71154988,0.00021146,2]
[349650488,1737357055010,-20819.5494,0.00021146,2]
[349650489,1737357055019,-510.42089219,0.00021149,2]
[349650490,1737357055028,-162.06759521,0.00021166,2]
[349650491,1737357055038,-1570.97,0.00021244,2]
[349650492,1737357055047,-1230.83,0.00021244,2]
[349650493,1737357055056,-1100.27,0.00021244,2]
[349650494,1737357055065,-1821.37,0.00021244,2]
[349650495,1737357055075,-926.43,0.00021244,2]
[349650496,1737357055084,-2371.35,0.00021244,2]
[349650497,1737357055093,-1721.05,0.00021244,2]
[349650498,1737357055102,-500.0,0.00021244,2]
[349650499,1737357055112,-1890.85,0.00021244,2]
[349650500,1737357055126,-705.04,0.00021244,2]
[349650501,1737357055136,-4155.36,0.00021244,2]
[349650502,1737357055145,-579.46,0.00021244,2]
[349650503,1737357055154,-1302.86,0.00021244,2]
[349650504,1737357055164,-3249.54,0.00021244,2]
[349650505,1737357055173,-515.46,0.00021244,2]
[349650506,1737357055182,-759.93,0.00021244,2]
[349650507,1737357055192,-500.0,0.00021244,2]
[349650508,1737357055201,-880.55,0.00021244,2]
[349650509,1737357055210,-1948.51,0.00021244,2]
[349650510,1737357055219,-845.88,0.00021244,2]
[349650511,1737357055227,-849.87,0.00021244,2]
[349650512,1737357055237,-2519.86,0.00021244,2]
[349650513,1737357055247,-500.0,0.00021244,2]
[349650514,1737357055257,-653.67,0.00021244,2]
[349650515,1737357055274,-427.86648193,0.00021245,2]
[349650516,1737357055288,-4175.32,0.00021245,2]
[349650517,1737357055300,-1121.29,0.00021245,2]
[349650518,1737357055314,-3077.07,0.00021245,2]
[349650519,1737357055325,-1599.794053,0.00021245,2]
[349650520,1737357055336,-1546.78,0.00021245,2]
[349650521,1737357055346,-500.0,0.00021245,2]
[349650522,1737357055357,-500.0,0.00021245,2]
[349650523,1737357055374,-1848.05,0.00021245,2]
[349650524,1737357055383,-500.0,0.00021245,2]
[349650525,1737357055393,-500.0,0.00021245,2]
[349650526,1737357055403,-2198.67,0.00021245,2]
[349650527,1737357055413,-500.0,0.00021245,2]
[349650528,1737357055422,-711.195957,0.00021245,2]
[349650529,1737357055431,-500.0,0.00021245,2]
[349650530,1737357055441,-1636.89,0.00021245,2]
[349650531,1737357055451,-1657.67,0.00021245,2]
[349650532,1737357055460,-500.0,0.00021245,2]
[349650533,1737357055470,-899.53,0.00021245,2]
[349650534,1737357055480,-1178.21,0.00021245,2]
[349650535,1737357055489,-538.92,0.00021245,2]
[349650536,1737357055499,-500.0,0.00021245,2]
[349650537,1737357055508,-500.0,0.00021245,2]
[349650538,1737357055519,-1794.15,0.00021245,2]
[349650539,1737357055528,-812.085689,0.00021245,2]
[349650540,1737357055537,-724.4,0.00021245,2]
[349650541,1737357055551,-812.085689,0.00021245,2]
[349650542,1737357055560,-2149.5,0.00021245,2]
[349650543,1737357055570,-3662.88,0.00021245,2]
[349650544,1737357055579,-3749.8,0.00021245,2]
[349650545,1737357055588,-1070.18,0.00021245,2]
[349650546,1737357055598,-500.0,0.00021245,2]
[349650547,1737357055609,-2622.23,0.00021245,2]
[349650548,1737357055624,-1124.23,0.00021245,2]
[349650549,1737357055634,-5414.11,0.00021245,2]
[349650550,1737357055744,-2203.52,0.00021245,2]
[349650551,1737357055754,-152.977135,0.00021245,2]
[349650552,1737357055763,-500.0,0.00021245,2]
[349650553,1737357055773,-737.23,0.00021245,2]
[349650554,1737357055783,-1289.34,0.00021245,2]
[349650555,1737357055792,-500.0,0.00021245,2]
[349650556,1737357055802,-2270.22,0.00021245,2]
[349650557,1737357055812,-500.0,0.00021245,2]
[349650558,1737357055822,-500.0,0.00021246,2]
[349650559,1737357055832,-500.0,0.00021246,2]
[349650560,1737357055842,-500.0,0.00021246,2]
[349650561,1737357055851,-294.02125602,0.00021246,2]
[349650562,1737357055860,-500.0,0.00021246,2]
[349650563,1737357055874,-500.0,0.00021246,2]
[349650564,1737357055883,-500.0,0.00021246,2]
[349650565,1737357055892,-500.0,0.00021246,2]
[349650566,1737357055901,-500.0,0.00021246,2]
[349650567,1737357055911,-507.39049869,0.00021246,2]
[349650568,1737357055920,-500.0,0.00021246,2]
[349650569,1737357055929,-616.56,0.00021246,2]
[349650570,1737357055938,-500.0,0.00021246,2]
[349650571,1737357055947,-621.89,0.00021246,2]
[349650572,1737357055956,-500.0,0.00021246,2]
[349650573,1737357055964,-500.0,0.00021246,2]
[349650574,1737357055973,-500.0,0.00021246,2]
[349650575,1737357055983,-500.0,0.00021246,2]
[349650576,1737357055991,-566.88,0.00021246,2]
[349650577,1737357056000,-500.0,0.00021246,2]
[349650578,1737357056009,-500.0,0.00021246,2]
[349650579,1737357056018,-500.0,0.00021246,2]
[349650580,1737357056027,-500.0,0.00021246,2]
[349650581,1737357056036,-500.0,0.00021246,2]
[349650582,1737357056045,-500.0,0.00021246,2]
[349650583,1737357056054,-500.0,0.00021246,2]
[349650584,1737357056063,-500.0,0.00021246,2]
[349650585,1737357056073,-500.0,0.00021246,2]
[349650586,1737357056082,-500.0,0.00021246,2]
[349650587,1737357056091,-500.0,0.00021246,2]
[349650588,1737357056101,-500.0,0.00021246,2]
[349650589,1737357056110,-500.0,0.00021246,2]
[349650590,1737357056123,-500.0,0.00021246,2]
[349650591,1737357056132,-500.0,0.00021246,2]
[349650592,1737357056142,-326.65934089,0.00021246,2]
[349650593,1737357056151,-597.07,0.00021246,2]
[349650594,1737357056160,-500.0,0.00021246,2]
[349650595,1737357056169,-517.11475163,0.00021246,2]
[349650596,1737357056178,-500.0,0.00021246,2]
[349650597,1737357056187,-500.0,0.00021246,2]
[349650598,1737357056196,-500.0,0.00021246,2]
[349650599,1737357056205,-500.0,0.00021246,2]
[349650600,1737357056214,-500.0,0.00021246,2]
[349650601,1737357056223,-826.91,0.00021246,2]
[349650602,1737357056232,-500.0,0.00021246,2]
[349650603,1737357056241,-874.42,0.00021246,2]
[349650604,1737357056251,-500.0,0.00021246,2]
[349650605,1737357056260,-503.80959093,0.00021246,2]
[349650606,1737357056269,-500.0,0.00021246,2]
[349650607,1737357056279,-639.70254451,0.00021246,2]
[349650608,1737357056289,-578.28238303,0.00021246,2]
[349650609,1737357056299,-500.0,0.00021246,2]
[349650610,1737357056309,-500.0,0.00021246,2]
[349650611,1737357056319,-500.0,0.00021246,2]
[349650612,1737357056329,-500.0,0.00021246,2]
[349650613,1737357056338,-500.0,0.00021246,2]
[349650614,1737357056348,-500.0,0.00021246,2]
[349650615,1737357056358,-500.0,0.00021246,2]
[349650616,1737357056371,-500.0,0.00021246,2]
[349650617,1737357056381,-500.0,0.00021246,2]
[349650618,1737357056391,-500.0,0.00021246,2]
[349650619,1737357056400,-500.0,0.00021246,2]
[349650620,1737357056409,-500.0,0.00021246,2]
[349650621,1737357056419,-510.10765159,0.00021246,2]
[349650622,1737357056428,-500.0,0.00021246,2]
[349650623,1737357056437,-293.09519175,0.00021246,2]
[349650624,1737357056447,-500.0,0.00021246,2]
[349650625,1737357056456,-501.69,0.00021246,2]
[349650626,1737357056466,-588.34,0.00021246,2]
[349650627,1737357056475,-500.0,0.00021246,2]
[349650628,1737357056484,-500.0,0.00021246,2]
[349650629,1737357056493,-500.0,0.00021246,2]
[349650630,1737357056502,-500.0,0.00021246,2]
[349650631,1737357056511,-500.0,0.00021246,2]
[349650632,1737357056520,-560.99,0.00021246,2]
[349650633,1737357056529,-515.06513687,0.00021246,2]
[349650634,1737357056538,-500.0,0.00021246,2]
[349650635,1737357056548,-500.0,0.00021246,2]
[349650636,1737357056557,-500.0,0.00021246,2]
[349650637,1737357056566,-500.0,0.00021246,2]
[349650638,1737357056575,-500.0,0.00021246,2]
[349650639,1737357056585,-500.0,0.00021246,2]
[349650640,1737357056594,-517.39785768,0.00021246,2]
[349650641,1737357056604,-522.45679932,0.00021246,2]
[349650642,1737357056617,-1209.74,0.00021246,2]
[349650643,1737357056627,-502.92767932,0.00021246,2]
[349650644,1737357056641,-200.0,0.00021246,2]
[349650645,1737357056650,-498.08608104,0.00021246,2]
[349650646,1737357056659,-445.07696134,0.00021246,2]
[349650647,1737357056668,-500.0,0.00021246,2]
[349650648,1737357056678,-500.0,0.00021246,2]
[349650649,1737357056689,-500.0,0.00021246,2]
[349650650,1737357056699,-500.0,0.00021246,2]
[349650651,1737357056707,-500.0,0.00021246,2]
[349650652,1737357056718,-500.0,0.00021246,2]
[349650653,1737357056728,-500.0,0.00021246,2]
[349650654,1737357056737,-996.35,0.00021246,2]
[349650655,1737357056746,-637.57,0.00021246,2]
[349650656,1737357056756,-500.0,0.00021246,2]
[349650657,1737357056765,-500.0,0.00021246,2]
[349650658,1737357056774,-500.0,0.00021246,2]
[349650659,1737357056784,-500.0,0.00021246,2]
[349650660,1737357056793,-433.99643917,0.00021246,2]
[349650661,1737357056803,-500.0,0.00021246,2]
[349650662,1737357056812,-519.47313621,0.00021246,2]
[349650663,1737357056821,-905.83,0.00021246,2]
[349650664,1737357056831,-500.0,0.00021246,2]
[349650665,1737357056840,-500.0,0.00021246,2]
[349650666,1737357056849,-500.0,0.00021246,2]
[349650667,1737357056859,-500.0,0.00021246,2]
[349650668,1737357056874,-500.0,0.00021246,2]
[349650669,1737357056883,-503.60222593,0.00021246,2]
[349650670,1737357056893,-1077.47,0.00021246,2]
[349650671,1737357056903,-500.0,0.00021246,2]
[349650672,1737357056912,-500.0,0.00021246,2]
[349650673,1737357056921,-500.0,0.00021246,2]
[349650674,1737357056931,-500.0,0.00021246,2]
[349650675,1737357056940,-500.0,0.00021246,2]
[349650676,1737357056950,-495.56982897,0.00021246,2]
[349650677,1737357056959,-554.39,0.00021246,2]
[349650678,1737357056968,-500.0,0.00021246,2]
[349650679,1737357056976,-387.9822189,0.00021246,2]
[349650680,1737357056986,-500.0,0.00021246,2]
[349650681,1737357056995,-906.22,0.00021246,2]
[349650682,1737357057005,-500.0,0.00021246,2]
[349650683,1737357057013,-371.42191083,0.00021246,2]
[349650684,1737357057023,-500.0,0.00021246,2]
[349650685,1737357057032,-500.0,0.00021246,2]
[349650686,1737357057041,-500.0,0.00021246,2]
[349650687,1737357057051,-500.0,0.00021246,2]
[349650688,1737357057060,-500.0,0.00021246,2]
[349650689,1737357057069,-500.0,0.00021246,2]
[349650690,1737357057079,-616.92,0.00021246,2]
[349650691,1737357057088,-500.0,0.00021246,2]
[349650692,1737357057098,-500.0,0.00021246,2]
[349650693,1737357057107,-1216.96,0.00021246,2]
[349650694,1737357057122,-500.0,0.00021246,2]
[349650695,1737357057131,-500.0,0.00021246,2]
[349650696,1737357057141,-1234.53,0.00021246,2]
[349650697,1737357057150,-830.7,0.00021246,2]
[349650698,1737357057159,-500.0,0.00021246,2]
[349650699,1737357057169,-500.0,0.00021246,2]
[349650700,1737357057178,-500.0,0.00021246,2]
[349650701,1737357057188,-513.25089526,0.00021246,2]
[349650702,1737357057199,-500.0,0.00021246,2]
[349650703,1737357057208,-510.97290497,0.00021246,2]
[349650704,1737357057217,-500.0,0.00021246,2]
[349650705,1737357057226,-500.0,0.00021246,2]
[349650706,1737357057236,-500.0,0.00021246,2]
[349650707,1737357057245,-1101.00240938,0.00021246,2]
[349650708,1737357057301,-8.15759062,0.00021246,2]
[349650709,1737357057311,-261.05787205,0.00021246,2]
[349650710,1737357057417,-500.0,0.00021246,2]
[349650711,1737357057427,-500.0,0.00021246,2]
[349650712,1737357057438,-1671.15,0.00021246,2]
[349650713,1737357057448,-500.0,0.00021246,2]
[349650714,1737357057457,-1002.93,0.00021246,2]
[349650715,1737357057467,-500.0,0.00021246,2]
[349650716,1737357057476,-500.0,0.00021246,2]
[349650717,1737357057485,-500.0,0.00021246,2]
[349650718,1737357057495,-510.0116926,0.00021246,2]
[349650719,1737357057504,-1060.61,0.00021246,2]
[349650720,1737357057514,-500.0,0.00021246,2]
[349650721,1737357057523,-530.38,0.00021246,2]
[349650722,1737357057532,-1501.55,0.00021246,2]
[349650723,1737357057541,-471.69034001,0.00021246,2]
[349650724,1737357057551,-1094.93,0.00021246,2]
[349650725,1737357057560,-500.0,0.00021246,2]
[349650726,1737357057569,-694.63,0.00021246,2]
[349650727,1737357057578,-513.16602958,0.00021246,2]
[349650728,1737357057588,-514.49423806,0.00021246,2]
[349650729,1737357057598,-500.0,0.00021246,2]
[349650730,1737357057607,-608.95,0.00021246,2]
[349650731,1737357057620,-500.0,0.00021246,2]
[349650732,1737357057629,-500.0,0.00021246,2]
[349650733,1737357057639,-573.88,0.00021246,2]
[349650734,1737357057649,-500.0,0.00021246,2]
[349650735,1737357057659,-1791.48,0.00021246,2]
[349650736,1737357057670,-151.0,0.00021246,2]
[349650737,1737357057679,-151.0,0.00021246,2]
[349650738,1737357057689,-764.66,0.00021246,2]
[349650739,1737357057699,-500.0,0.00021246,2]
[349650740,1737357057708,-61.84548512,0.00021246,2]
[349650741,1737357057719,-438.15451488,0.00021246,2]
[349650742,1737357057729,-1010.03550284,0.00021246,2]
[349650743,1737357057742,-212.21449716,0.00021246,2]
[349650744,1737357057755,-2337.43,0.00021246,2]
[349650745,1737357057764,-806.28,0.00021246,2]
[349650746,1737357057773,-500.0,0.00021246,2]
[349650747,1737357057783,-1684.46,0.00021246,2]
[349650748,1737357057792,-2955.22725334,0.00021246,2]
[349650749,1737357057915,-420.86274666,0.00021246,2]
[349650750,1737357057924,-741.22,0.00021246,2]
[349650751,1737357057934,-3636.06,0.00021246,2]
[349650752,1737357057944,-2562.36,0.00021246,2]
[349650753,1737357057953,-6332.1,0.00021246,2]
[349650754,1737357057962,-500.0,0.00021246,2]
[349650755,1737357057973,-1118.19,0.00021246,2]
[349650756,1737357057983,-691.41,0.00021246,2]
[349650757,1737357057992,-500.0,0.00021246,2]
[349650758,1737357058001,-5034.92,0.00021246,2]
[349650759,1737357058011,-500.0,0.00021246,2]
[349650760,1737357058021,-328.69053406,0.00021246,2]
[349650761,1737357058030,-669.71,0.00021246,2]
[349650762,1737357058039,-516.12863548,0.00021246,2]
[349650763,1737357058049,-753.19,0.00021246,2]
[349650764,1737357058059,-251.54810222,0.00021246,2]
[349650765,1737357058068,-500.0,0.00021246,2]
[349650766,1737357058077,-500.0,0.00021246,2]
[349650767,1737357058086,-500.0,0.00021246,2]
[349650768,1737357058095,-500.0,0.00021246,2]
[349650769,1737357058105,-1285.62,0.00021246,2]
[349650770,1737357058118,-783.34,0.00021246,2]
[349650771,1737357058127,-6472.48,0.00021246,2]
[349650772,1737357058137,-2685.84,0.00021246,2]
[349650773,1737357058146,-836.18,0.00021246,2]
[349650774,1737357058155,-500.0,0.00021246,2]
[349650775,1737357058165,-500.0,0.00021246,2]
[349650776,1737357058174,-500.0,0.00021246,2]
[349650777,1737357058184,-2128.21,0.00021246,2]
[349650778,1737357058194,-6460.5,0.00021246,2]
[349650779,1737357058206,-618.51,0.00021246,2]
[349650780,1737357058221,-385.8,0.00021246,2]
[349650781,1737357058235,-500.0,0.00021246,2]
[349650782,1737357058249,-500.0,0.00021246,2]
[349650783,1737357058260,-1585.57,0.00021246,2]
[349650784,1737357058271,-2760.19,0.00021246,2]
[349650785,1737357058281,-500.0,0.00021246,2]
[349650786,1737357058291,-500.0,0.00021246,2]
[349650787,1737357058301,-984.05,0.00021246,2]
[349650788,1737357058311,-1906.35,0.00021246,2]
[349650789,1737357058320,-500.0,0.00021246,2]
[349650790,1737357058329,-500.0,0.00021246,2]
[349650791,1737357058339,-500.0,0.00021246,2]
[349650792,1737357058348,-1499.5,0.00021246,2]
[349650793,1737357058357,-500.0,0.00021246,2]
[349650794,1737357058370,-500.0,0.00021246,2]
[349650795,1737357058379,-2628.34,0.00021246,2]
[349650796,1737357058388,-500.0,0.00021246,2]
[349650797,1737357058397,-520.39,0.00021246,2]
[349650798,1737357058407,-500.0,0.00021246,2]
[349650799,1737357058416,-1299.48,0.00021246,2]
[349650800,1737357058425,-953.14,0.00021246,2]
[349650801,1737357058434,-500.0,0.00021246,2]
[349650802,1737357058443,-500.0,0.00021246,2]
[349650803,1737357058451,-812.085689,0.00021246,2]
[349650804,1737357058460,-500.0,0.00021246,2]
[349650805,1737357058469,-500.0,0.00021246,2]
[349650806,1737357058478,-500.0,0.00021246,2]
[349650807,1737357058487,-500.0,0.00021246,2]
[349650808,1737357058496,-812.085689,0.00021246,2]
[349650809,1737357058505,-1959.47,0.00021246,2]
[349650810,1737357058514,-500.0,0.00021246,2]
[349650811,1737357058523,-638.46,0.00021246,2]
[349650812,1737357058532,-244.07100294,0.00021246,2]
[349650813,1737357058542,-1350.25,0.00021246,2]
[349650814,1737357058551,-589.0,0.00021246,2]
[349650815,1737357058560,-500.0,0.00021246,2]
[349650816,1737357058570,-500.0,0.00021246,2]
[349650817,1737357058579,-500.0,0.00021246,2]
[349650818,1737357058589,-715.54,0.00021246,2]
[349650819,1737357058598,-751.72,0.00021246,2]
[349650820,1737357058607,-1867.69,0.00021246,2]
[349650821,1737357058621,-500.0,0.00021246,2]
[349650822,1737357058630,-500.0,0.00021246,2]
[349650823,1737357058643,-237.65847813,0.00021246,2]
[349650824,1737357058653,-500.0,0.00021246,2]
[349650825,1737357058662,-3983.13,0.00021246,2]
[349650826,1737357058672,-500.0,0.00021246,2]
[349650827,1737357058684,-500.0,0.00021246,2]
[349650828,1737357058693,-238.87,0.00021246,2]
[349650829,1737357058702,-882.09,0.00021246,2]
[349650830,1737357058711,-500.0,0.00021246,2]
[349650831,1737357058723,-500.0,0.00021246,2]
[349650832,1737357058732,-977.81,0.00021246,2]
[349650833,1737357058742,-500.0,0.00021246,2]
[349650834,1737357058751,-1799.96,0.00021246,2]
[349650835,1737357058760,-512.21364045,0.00021246,2]
[349650836,1737357058768,-500.0,0.00021246,2]
[349650837,1737357058778,-500.0,0.00021246,2]
[349650838,1737357058787,-500.0,0.00021246,2]
[349650839,1737357058796,-500.0,0.00021246,2]
[349650840,1737357058805,-566.25,0.00021246,2]
[349650841,1737357058815,-500.0,0.00021246,2]
[349650842,1737357058824,-500.0,0.00021246,2]
[349650843,1737357058833,-500.0,0.00021246,2]
[349650844,1737357058842,-500.0,0.00021246,2]
[349650845,1737357058851,-500.0,0.00021246,2]
[349650846,1737357058860,-988.73,0.00021246,2]
[349650847,1737357058875,-500.0,0.00021246,2]
[349650848,1737357058884,-500.0,0.00021246,2]
[349650849,1737357058893,-679.55,0.00021246,2]
[349650850,1737357058902,-775.38,0.00021246,2]
[349650851,1737357059006,-882.11,0.00021246,2]
[349650852,1737357059016,-1067.99,0.00021246,2]
[349650853,1737357059025,-500.0,0.00021246,2]
[349650854,1737357059035,-465.57628947,0.00021246,2]
[349650855,1737357059045,-500.0,0.00021246,2]
[349650856,1737357059054,-1944.06,0.00021246,2]
[349650857,1737357059063,-500.0,0.00021246,2]
[349650858,1737357059073,-500.0,0.00021246,2]
[349650859,1737357059083,-500.0,0.00021247,2]
[349650860,1737357059094,-500.0,0.00021247,2]
[349650861,1737357059103,-301.22244195,0.00021247,2]
[349650862,1737357059113,-500.0,0.00021247,2]
[349650863,1737357059129,-571.87,0.00021247,2]
[349650864,1737357059138,-595.96,0.00021247,2]
[349650865,1737357059148,-500.0,0.00021247,2]
[349650866,1737357059157,-500.0,0.00021247,2]
[349650867,1737357059166,-500.0,0.00021247,2]
[349650868,1737357059176,-500.0,0.00021247,2]
[349650869,1737357059185,-500.0,0.00021247,2]
[349650870,1737357059194,-500.0,0.00021247,2]
[349650871,1737357059204,-500.0,0.00021247,2]
[349650872,1737357059213,-500.0,0.00021247,2]
[349650873,1737357059223,-500.0,0.00021247,2]
[349650874,1737357059232,-500.0,0.00021247,2]
[349650875,1737357059242,-500.0,0.00021247,2]
[349650876,1737357059252,-600.27,0.00021247,2]
[349650877,1737357059262,-504.93362862,0.00021247,2]
[349650878,1737357059271,-500.0,0.00021247,2]
[349650879,1737357059281,-500.0,0.00021247,2]
[349650880,1737357059290,-500.0,0.00021247,2]
[349650881,1737357059299,-567.42,0.00021247,2]
[349650882,1737357059308,-500.0,0.00021247,2]
[349650883,1737357059318,-500.0,0.00021247,2]
[349650884,1737357059327,-500.0,0.00021247,2]
[349650885,1737357059336,-500.0,0.00021247,2]
[349650886,1737357059346,-500.0,0.00021247,2]
[349650887,1737357059355,-500.0,0.00021247,2]
[349650888,1737357059368,-500.0,0.00021247,2]
[349650889,1737357059377,-500.0,0.00021247,2]
[349650890,1737357059387,-500.0,0.00021247,2]
[349650891,1737357059397,-503.08020912,0.00021247,2]
[349650892,1737357059406,-500.0,0.00021247,2]
[349650893,1737357059416,-500.0,0.00021247,2]
[349650894,1737357059426,-500.0,0.00021247,2]
[349650895,1737357059435,-500.0,0.00021247,2]
[349650896,1737357059445,-500.0,0.00021247,2]
[349650897,1737357059454,-500.0,0.00021247,2]
[349650898,1737357059464,-500.0,0.00021247,2]
[349650899,1737357059473,-500.0,0.00021247,2]
[349650900,1737357059482,-500.0,0.00021247,2]
[349650901,1737357059491,-500.0,0.00021247,2]
[349650902,1737357059500,-819.46,0.00021247,2]
[349650903,1737357059510,-1241.57,0.00021247,2]
[349650904,1737357059520,-553.61,0.00021247,2]
[349650905,1737357059529,-500.0,0.00021247,2]
[349650906,1737357059538,-555.22,0.00021247,2]
[349650907,1737357059547,-498.60671258,0.00021247,2]
[349650908,1737357059556,-1069.58,0.00021247,2]
[349650909,1737357059566,-913.82,0.00021247,2]
[349650910,1737357059575,-500.0,0.00021247,2]
[349650911,1737357059584,-610.64,0.00021247,2]
[349650912,1737357059594,-500.0,0.00021247,2]
[349650913,1737357059603,-500.0,0.00021247,2]
[349650914,1737357059612,-500.0,0.00021247,2]
[349650915,1737357059625,-728.27,0.00021247,2]
[349650916,1737357059634,-500.0,0.00021247,2]
[349650917,1737357059644,-1109.51,0.00021247,2]
[349650918,1737357059653,-401.6131211,0.00021247,2]
[349650919,1737357059665,-504.09,0.00021247,2]
[349650920,1737357059675,-509.90428734,0.00021247,2]
[349650921,1737357059686,-500.0,0.00021247,2]
[349650922,1737357059695,-500.0,0.00021247,2]
[349650923,1737357059704,-500.0,0.00021247,2]
[349650924,1737357059713,-500.0,0.00021247,2]
[349650925,1737357059723,-500.0,0.00021247,2]
[349650926,1737357059735,-500.0,0.00021247,2]
[349650927,1737357059745,-500.0,0.00021247,2]
[349650928,1737357059755,-500.0,0.00021247,2]
[349650929,1737357059764,-500.0,0.00021247,2]
[349650930,1737357059773,-151.726696,0.00021247,2]
[349650931,1737357059782,-469.04,0.00021247,2]
[349650932,1737357059791,-500.0,0.00021247,2]
[349650933,1737357059801,-500.0,0.00021247,2]
[349650934,1737357059810,-500.0,0.00021247,2]
[349650935,1737357059820,-500.0,0.00021247,2]
[349650936,1737357059829,-500.0,0.00021247,2]
[349650937,1737357059839,-1382.29,0.00021247,2]
[349650938,1737357059848,-1723.55,0.00021247,2]
[349650939,1737357059857,-1814.87,0.00021247,2]
[349650940,1737357059871,-500.0,0.00021247,2]
[349650941,1737357059880,-500.0,0.00021247,2]